bitfinex-derivatives/quotes_BTCF0:USTF0_20251118
["timestamp","ask_amount","ask_price","bid_price","bid_amount"]
[1763466616004,0.03930694,91649.0,91647.0,0.04422]
[1763466616211,0.03930694,91650.0,91648.0,0.04422]
[1763466616408,0.03930694,91650.0,91649.0,0.04422]
[1763466617012,0.03930694,91651.0,91650.0,0.05959803]
[1763466617709,0.03930694,91652.0,91650.0,0.05959803]
[1763466617902,0.06226694,91652.0,91651.0,0.04422]
[1763466619101,0.08439694,91652.0,91651.0,0.04422]
[1763466619706,0.04509,91652.0,91651.0,0.04422]
[1763466622514,0.04337,91651.0,91650.0,0.00219803]
[1763466622710,0.04337,91641.0,91640.0,0.0448]
[1763466622913,0.04337,91641.0,91640.0,0.04699803]
[1763466626215,0.04337,91641.0,91640.0,0.00219803]
[1763466628116,0.04315,91637.0,91636.0,0.00016366]
[1763466628620,0.04315,91637.0,91636.0,0.04401366]
[1763466630214,0.04315,91637.0,91636.0,0.00016366]
[1763466632010,0.04315,91637.0,91636.0,0.02188366]
[1763466633928,0.04315,91637.0,91636.0,0.00016366]
[1763466635821,0.04315,91637.0,91636.0,0.02188366]
[1763466636019,0.04315,91637.0,91636.0,0.00016366]
[1763466640719,0.03930694,91639.0,91615.0,0.01268]
[1763466640720,0.0429,91616.0,91615.0,0.0958003]
[1763466640925,0.01118,91628.0,91615.0,0.05653]
[1763466641125,0.05408,91628.0,91627.0,0.04385]
[1763466641529,0.0429,91616.0,91615.0,0.04385]
[1763466642232,0.04306366,91625.0,91624.0,0.04385]
[1763466643022,0.00016366,91625.0,91624.0,0.05656]
[1763466643623,0.04306366,91625.0,91624.0,0.05656]
[1763466643828,0.04306366,91625.0,91624.0,0.04385]
[1763466646034,0.04306366,91625.0,91624.0,0.04485]
[1763466647930,0.04306366,91625.0,91624.0,0.04385]
[1763466650540,0.05670366,91625.0,91624.0,0.04385]
[1763466650838,0.05670366,91625.0,91624.0,0.02172]
[1763466651036,0.05670366,91625.0,91620.0,0.00219803]
[1763466651340,0.0429,91621.0,91620.0,0.04604803]
[1763466652239,0.0429,91621.0,91620.0,0.04704803]
[1763466653632,0.0429,91621.0,91620.0,0.02491803]
[1763466653826,0.0429,91621.0,91620.0,0.00319803]
[1763466654032,0.0429,91621.0,91620.0,0.02491803]
[1763466654234,0.0429,91621.0,91620.0,0.04604803]
[1763466654534,0.0429,91621.0,91620.0,0.04704803]
[1763466660446,0.0429,91621.0,91620.0,0.06082803]
[1763466660736,0.00016366,91625.0,91624.0,0.04364]
[1763466660938,0.03930694,91633.0,91624.0,0.04364]
[1763466661139,0.03930694,91635.0,91634.0,0.04364]
[1763466661536,0.06249694,91635.0,91634.0,0.04364]
[1763466661738,0.02319,91635.0,91634.0,0.04364]
[1763466662137,0.04432,91635.0,91634.0,0.04364]
[1763466663333,0.03930694,91639.0,91634.0,0.04364]
[1763466663540,0.08362694,91639.0,91638.0,0.04364]
[1763466664245,0.04432,91639.0,91638.0,0.04364]
[1763466664639,0.08362694,91639.0,91638.0,0.04364]
[1763466667549,0.04432,91639.0,91638.0,0.04364]
[1763466668143,0.03930694,91642.0,91640.0,0.05961803]
[1763466668446,0.00016366,91644.0,91643.0,0.04364]
[1763466669744,0.04448366,91644.0,91643.0,0.04364]
[1763466669948,0.02335366,91644.0,91643.0,0.04364]
[1763466670141,0.00016366,91644.0,91643.0,0.04364]
[1763466670954,0.04448366,91644.0,91643.0,0.04364]
[1763466677055,0.04448366,91644.0,91643.0,0.02252]
[1763466677255,0.04432,91641.0,91640.0,0.02471803]
[1763466677444,0.04432,91641.0,91640.0,0.04583803]
[1763466678355,0.02319,91641.0,91640.0,0.05854803]
[1763466678547,0.04432,91641.0,91640.0,0.05854803]
[1763466681157,0.04432,91641.0,91640.0,0.04583803]
[1763466684857,0.04432,91641.0,91640.0,0.05947803]
[1763466689062,0.04432,91641.0,91640.0,0.04583803]
[1763466690153,0.04432,91641.0,91640.0,0.05982803]
[1763466690661,0.04432,91641.0,91640.0,0.04583803]
[1763466691361,0.04432,91641.0,91640.0,0.05982803]
[1763466691560,0.04432,91641.0,91640.0,0.04583803]
[1763466693653,0.08362694,91641.0,91640.0,0.00219803]
[1763466693857,0.04432,91641.0,91640.0,0.00219803]
[1763466694456,0.0589543,91642.0,91630.0,0.05621]
[1763466694457,0.04629,91631.0,91630.0,0.05621]
[1763466694657,0.04629,91631.0,91630.0,0.05840803]
[1763466695962,0.02318,91631.0,91630.0,0.05840803]
[1763466696161,0.08560915,91638.0,91637.0,0.04446]
[1763466696563,0.04629,91638.0,91637.0,0.04446]
[1763466697452,0.04629,91638.0,91637.0,0.02242]
[1763466697860,0.08560915,91638.0,91637.0,0.02242]
[1763466698061,0.08560915,91638.0,91637.0,0.04446]
[1763466699667,0.04629,91638.0,91637.0,0.04446]
[1763466699968,0.04629,91638.0,91637.0,0.02242]
[1763466701870,0.04629,91626.0,91625.0,0.05637366]
[1763466703872,0.04629,91626.0,91625.0,0.04462366]
[1763466705565,0.04629,91626.0,91625.0,0.05861366]
[1763466709976,0.04629,91626.0,91625.0,0.04462366]
[1763466722391,0.02318,91626.0,91625.0,0.04462366]
[1763466722887,0.04521,91626.0,91625.0,0.04462366]
[1763466733390,0.04441,91632.0,91631.0,0.04401]
[1763466734795,0.08371708,91632.0,91631.0,0.04401]
[1763466735592,0.04441,91632.0,91631.0,0.04401]
[1763466736698,0.08371708,91632.0,91631.0,0.04401]
[1763466736893,0.04441,91632.0,91631.0,0.04401]
[1763466737200,0.04541,91632.0,91631.0,0.04401]
[1763466737794,0.05883,91632.0,91631.0,0.04401]
[1763466738602,0.05883,91632.0,91631.0,0.02238]
[1763466738798,0.04441,91631.0,91630.0,0.00219803]
[1763466738991,0.0837569,91631.0,91630.0,0.02457803]
[1763466739602,0.0837569,91631.0,91630.0,0.04620803]
[1763466740905,0.04441,91631.0,91630.0,0.00219803]
[1763466741198,0.04549,91626.0,91625.0,0.00016366]
[1763466745997,0.1044443,91626.0,91625.0,0.00016366]
[1763466747404,0.04549,91626.0,91625.0,0.00016366]
[1763466747907,0.1044443,91626.0,91625.0,0.00016366]
[1763466748306,0.04549,91626.0,91625.0,0.00016366]
[1763466750403,0.17793359,91632.0,91606.0,0.02168291]
[1763466750404,0.04303,91607.0,91606.0,0.02168291]
[1763466750611,0.04303,91607.0,91606.0,0.04407291]
[1763466751997,0.04303,91607.0,91606.0,0.02168291]
[1763466752202,0.04303,91607.0,91606.0,0.04507291]
[1763466753503,0.04303,91607.0,91606.0,0.02268291]
[1763466753699,0.04303,91607.0,91606.0,0.00127291]
[1763466758216,0.01349,91608.0,91597.0,0.00016366]
[1763466758217,0.04303,91598.0,91597.0,0.00016366]
[1763466758507,0.04303,91598.0,91575.0,0.0392703]
[1763466758508,0.04303,91577.0,91576.0,0.05726]
[1763466759309,0.04203,91577.0,91576.0,0.05726]
[1763466759513,0.04211391,91577.0,91576.0,0.05726]
[1763466759902,0.04211391,91577.0,91576.0,0.0448]
[1763466760303,8.391e-05,91577.0,91576.0,0.05926]
[1763466760501,0.00016375,91586.0,91585.0,0.0438]
[1763466761310,0.05652,91608.0,91607.0,0.0438]
[1763466761815,0.04303,91608.0,91607.0,0.0438]
[1763466762202,0.01349,91616.0,91600.0,0.01346]
[1763466762203,0.04319375,91617.0,91616.0,0.0438]
[1763466763208,0.04419375,91617.0,91616.0,0.0438]
[1763466763610,0.04519375,91617.0,91616.0,0.0438]
[1763466764612,0.04419375,91617.0,91616.0,0.0438]
[1763466765618,0.04319375,91617.0,91616.0,0.0438]
[1763466768222,0.00016375,91617.0,91616.0,0.0438]
[1763466768417,0.02219375,91617.0,91616.0,0.0438]
[1763466768624,0.04319375,91617.0,91616.0,0.0438]
[1763466781225,0.04261,91606.0,91605.0,0.04505]
[1763466788426,0.04261,91615.0,91614.0,0.04505]
[1763466803434,0.04261,91615.0,91614.0,0.02271]
[1763466803633,0.04395,91611.0,91610.0,0.00219803]
[1763466804135,0.10288568,91611.0,91610.0,0.02454803]
[1763466804330,0.10288568,91611.0,91610.0,0.04710803]
[1763466804536,0.10288568,91611.0,91610.0,0.00219803]
[1763466804944,0.10288568,91611.0,91610.0,0.02454803]
[1763466805138,0.10288568,91611.0,91610.0,0.04710803]
[1763466806237,0.10388568,91611.0,91610.0,0.00219803]
[1763466806437,0.04395,91599.0,91598.0,0.04507375]
[1763466807729,0.04395,91599.0,91598.0,0.02251375]
[1763466807936,0.04395,91599.0,91598.0,0.00016375]
[1763466809348,0.1028985,91599.0,91598.0,0.00016375]
[1763466809647,0.04395,91599.0,91598.0,0.00016375]
[1763466810042,0.0067,91590.0,91583.0,0.0434]
[1763466810242,0.04399,91584.0,91583.0,0.0434]
[1763466812546,0.04399,91584.0,91583.0,0.0444]
[1763466812941,0.02306375,91593.0,91592.0,0.0434]
[1763466813146,0.00016375,91593.0,91592.0,0.0434]
[1763466813748,0.04415375,91593.0,91592.0,0.0434]
[1763466820954,0.00016375,91593.0,91592.0,0.0434]
[1763466823557,0.04399,91584.0,91583.0,0.0042703]
[1763466823763,0.05042,91575.0,91567.0,0.05894831]
[1763466824055,0.04399,91575.0,91574.0,0.04356375]
[1763466824257,0.06840469,91575.0,91574.0,0.04356375]
[1763466824460,0.02441469,91575.0,91574.0,0.04356375]
[1763466825161,0.04631469,91575.0,91574.0,0.04356375]
[1763466826260,0.0229,91575.0,91574.0,0.04356375]
[1763466826758,0.20156277,91584.0,91583.0,0.0434]
[1763466827057,0.04399,91584.0,91583.0,0.0434]
[1763466828160,0.04499,91584.0,91583.0,0.0434]
[1763466828458,0.04599,91584.0,91583.0,0.0434]
[1763466830462,0.04499,91584.0,91583.0,0.0434]
[1763466831056,0.04399,91584.0,91583.0,0.0434]
[1763466833758,0.00016375,91593.0,91592.0,0.0434]
[1763466834861,0.00116375,91593.0,91592.0,0.0434]
[1763466835055,0.00216375,91593.0,91592.0,0.0434]
[1763466835456,0.00116375,91593.0,91592.0,0.0434]
[1763466836564,0.00016375,91593.0,91592.0,0.0434]
[1763466838261,0.04391375,91593.0,91592.0,0.0434]
[1763466838667,0.06909742,91593.0,91592.0,0.0434]
[1763466840756,0.06909742,91593.0,91592.0,0.02207]
[1763466841067,0.06909742,91593.0,91592.0,0.04508]
[1763466842256,0.06909742,91593.0,91590.0,0.01545803]
[1763466842473,0.04375,91591.0,91590.0,0.00219803]
[1763466842762,0.04375,91591.0,91581.0,0.05819]
[1763466842763,0.04375,91582.0,91581.0,0.05819]
[1763466842964,0.06893367,91582.0,91581.0,0.05819]
[1763466843465,0.06893367,91582.0,91581.0,0.0442]
[1763466844468,0.06893367,91582.0,91581.0,0.0452]
[1763466844664,0.06893367,91582.0,91581.0,0.0462]
[1763466846265,0.06893367,91582.0,91581.0,0.02319]
[1763466847666,0.06893367,91582.0,91581.0,0.002]
[1763466849272,0.06893367,91582.0,91581.0,0.0462]
[1763466850768,0.06893367,91582.0,91581.0,0.002]
[1763466851873,0.04375,91575.0,91574.0,0.04436375]
[1763466852181,0.06893367,91575.0,91574.0,0.04436375]
[1763466852670,0.06893367,91575.0,91574.0,0.00016375]
[1763466852862,0.06893367,91575.0,91574.0,0.04436375]
[1763466853063,0.06893367,91575.0,91574.0,0.04536375]
[1763466853465,0.06893367,91575.0,91574.0,0.04636375]
[1763466854066,0.06893367,91575.0,91574.0,0.04436375]
[1763466855972,0.02518367,91575.0,91574.0,0.04436375]
[1763466857175,0.03922836,91588.0,91574.0,0.04436375]
[1763466857383,0.03922836,91589.0,91588.0,0.0442]
[1763466857680,0.08297836,91589.0,91588.0,0.0442]
[1763466857882,0.04375,91589.0,91588.0,0.0442]
[1763466859280,0.04475,91589.0,91588.0,0.0442]
[1763466859579,0.04575,91589.0,91588.0,0.0442]
[1763466860778,0.002,91589.0,91588.0,0.0442]
[1763466865184,0.02329,91589.0,91588.0,0.0442]
[1763466865678,0.0454,91589.0,91588.0,0.0442]
[1763466867275,0.002,91589.0,91588.0,0.0442]
[1763466867672,0.02445,91589.0,91588.0,0.0442]
[1763466868272,0.04761,91589.0,91588.0,0.0442]
[1763466869082,0.07276793,91589.0,91588.0,0.0442]
[1763466869584,0.07276885,91589.0,91588.0,0.0442]
[1763466875186,0.04960885,91589.0,91588.0,0.0442]
[1763466876494,0.07276885,91589.0,91588.0,0.0442]
[1763466882085,0.07277574,91589.0,91588.0,0.0442]
[1763466885602,0.1120041,91589.0,91588.0,0.0442]
[1763466887197,0.07277574,91589.0,91588.0,0.0442]
[1763466887403,0.07177574,91589.0,91588.0,0.0442]
[1763466888396,0.07077574,91589.0,91588.0,0.0442]
[1763466889506,0.07077574,91589.0,91588.0,0.05736]
[1763466890404,0.05902082,91589.0,91588.0,0.05736]
[1763466890605,0.10763656,91589.0,91588.0,0.05736]
[1763466890807,0.13079656,91589.0,91588.0,0.05736]
[1763466891706,0.07177574,91589.0,91588.0,0.05736]
[1763466892209,0.07077574,91589.0,91588.0,0.05736]
[1763466894804,0.04761574,91589.0,91588.0,0.05736]
[1763466895203,0.07077574,91589.0,91588.0,0.05736]
[1763466900608,0.02516574,91589.0,91588.0,0.4297852]
[1763466900808,0.03951797,91593.0,91592.0,0.05883]
[1763466900809,0.00016375,91593.0,91592.0,0.05883]
[1763466901714,0.03935422,91601.0,91592.0,0.05883]
[1763466901715,0.04493,91602.0,91601.0,0.0452]
[1763466901916,0.08428422,91602.0,91601.0,0.0452]
[1763466902110,0.04493,91602.0,91601.0,0.0452]
[1763466902620,0.02264,91602.0,91601.0,0.0452]
[1763466902820,0.04493,91602.0,91601.0,0.0452]
[1763466903007,0.03935422,91608.0,91607.0,0.0452]
[1763466903212,0.00016375,91611.0,91610.0,0.0590918]
[1763466903404,0.02280375,91611.0,91610.0,0.0590918]
[1763466903718,0.00016375,91611.0,91610.0,0.0590918]
[1763466904017,0.02280375,91611.0,91610.0,0.0590918]
[1763466904618,0.02380375,91611.0,91610.0,0.0590918]
[1763466905417,0.02480375,91611.0,91610.0,0.0590918]
[1763466905717,0.02264,91620.0,91619.0,0.0452]
[1763466906822,0.02364,91620.0,91619.0,0.0452]
[1763466907123,0.02464,91620.0,91619.0,0.0452]
[1763466907810,0.02364,91620.0,91619.0,0.0452]
[1763466908214,0.04493,91620.0,91619.0,0.0452]
[1763466908921,0.04712803,91620.0,91619.0,0.0452]
[1763466909513,0.02483803,91620.0,91619.0,0.0452]
[1763466909715,0.00016375,91629.0,91628.0,0.0452]
[1763466909716,0.04509375,91629.0,91628.0,0.0452]
[1763466910427,0.00016375,91629.0,91628.0,0.0452]
[1763466910817,0.02280375,91629.0,91628.0,0.0452]
[1763466911026,0.00016375,91629.0,91628.0,0.0452]
[1763466911328,0.01299,91645.0,91627.0,0.1092575]
[1763466911329,0.08428422,91643.0,91642.0,0.0452]
[1763466911717,0.04493,91643.0,91642.0,0.0452]
[1763466912523,0.04593,91643.0,91642.0,0.0452]
[1763466912725,0.07086986,91643.0,91642.0,0.0452]
[1763466913123,0.04493,91641.0,91640.0,0.0007318]
[1763466913327,0.04493,91634.0,91633.0,0.00016375]
[1763466913631,0.06986986,91634.0,91633.0,0.00016375]
[1763466915018,0.07086986,91634.0,91633.0,0.00016375]
[1763466915217,0.07186986,91634.0,91633.0,0.00016375]
[1763466924426,0.11122408,91634.0,91633.0,0.00016375]
[1763466924624,0.11122408,91634.0,91615.0,0.01363]
[1763466924625,0.00219803,91630.0,91610.0,0.35194375]
[1763466924816,0.04541,91611.0,91610.0,0.0449718]
[1763466925529,0.07028727,91611.0,91610.0,0.0449718]
[1763466929727,0.07028727,91611.0,91610.0,0.0459718]
[1763466930436,0.07028727,91611.0,91610.0,0.0449718]
[1763466930729,0.00016375,91620.0,91619.0,0.04544]
[1763466930932,0.08384422,91644.0,91643.0,0.04544]
[1763466931136,0.04449,91644.0,91643.0,0.04544]
[1763466934726,0.05846,91644.0,91643.0,0.04544]
[1763466935828,0.04449,91644.0,91643.0,0.04544]
[1763466936426,0.05846,91644.0,91643.0,0.04544]
[1763466937431,0.05565,91635.0,91634.0,0.00016375]
[1763466937826,0.09488237,91635.0,91634.0,0.00016375]
[1763466938229,0.05565,91635.0,91634.0,0.00016375]
[1763466939038,0.04449,91616.0,91615.0,0.04544]
[1763466939231,0.04449,91611.0,91610.0,0.0461718]
[1763466942647,0.06938554,91611.0,91610.0,0.0461718]
[1763466950237,0.04449,91611.0,91610.0,0.0461718]
[1763466957236,0.04449,91611.0,91610.0,0.0007318]
[1763466957433,0.04525,91602.0,91601.0,0.02117375]
[1763466957833,0.04525,91602.0,91601.0,0.04301375]
[1763466958042,0.04525,91602.0,91601.0,0.00016375]
[1763466958747,0.04525,91602.0,91601.0,0.00216375]
[1763466960442,0.07004804,91602.0,91601.0,0.00216375]
[1763466961443,0.07004804,91602.0,91576.0,0.0129]
[1763466961444,0.04525,91577.0,91576.0,0.05575]
[1763466962840,0.04525,91577.0,91576.0,0.05775]
[1763466963841,0.00219803,91580.0,91579.0,0.04285]
[1763466964040,0.04541375,91586.0,91585.0,0.04285]
[1763466966547,0.02260375,91586.0,91585.0,0.05575]
[1763466966949,0.04541375,91586.0,91585.0,0.05575]
[1763466967744,0.04541375,91586.0,91585.0,0.04285]
[1763466968450,0.04541375,91586.0,91580.0,0.0435818]
[1763466968451,0.04525,91581.0,91580.0,0.0435818]
[1763466968749,0.04525,91581.0,91580.0,0.0007318]
[1763466968951,0.0700584,91581.0,91580.0,0.0007318]
[1763466969541,0.04525,91573.0,91572.0,0.30589]
[1763466970150,0.04525,91573.0,91572.0,0.28488]
[1763466970350,0.01294,91575.0,91567.0,0.04301375]
[1763466970351,0.04525,91568.0,91567.0,0.04301375]
[1763466972654,0.02463803,91570.0,91569.0,0.04285]
[1763466973053,0.04744803,91570.0,91569.0,0.04285]
[1763466976956,0.04525,91580.0,91579.0,0.04285]
[1763466977156,0.04744803,91580.0,91579.0,0.04285]
[1763466984158,0.03922949,91597.0,91585.0,0.04514]
[1763466984362,0.03922949,91605.0,91585.0,0.04514]
[1763466984557,0.04374,91605.0,91604.0,0.04514]
[1763466984756,0.06846594,91605.0,91604.0,0.04514]
[1763466986462,0.06946594,91605.0,91604.0,0.04514]
[1763466986861,0.06846594,91605.0,91604.0,0.04514]
[1763466991865,0.06846594,91605.0,91604.0,0.02332]
[1763466992461,0.04456,91601.0,91600.0,0.0442018]
[1763466992660,0.06928594,91601.0,91600.0,0.0442018]
[1763466993558,0.06928594,91601.0,91595.0,0.00016375]
[1763466993559,0.05819,91596.0,91595.0,0.00016375]
[1763466993758,0.08291594,91596.0,91595.0,0.00016375]
[1763466994573,0.05693,91584.0,91583.0,0.04347]
[1763466994758,0.08166452,91584.0,91583.0,0.04347]
[1763466999868,0.05693,91584.0,91583.0,0.04347]
[1763467000270,0.04456,91581.0,91580.0,0.0228418]
[1763467001361,0.04456,91581.0,91580.0,0.0442018]
[1763467001563,0.04456,91581.0,91580.0,0.0007318]
[1763467001874,0.04456,91581.0,91574.0,0.00016375]
[1763467001875,0.05766,91575.0,91574.0,0.00016375]
[1763467002272,0.05766,91575.0,91574.0,0.02227375]
[1763467003773,0.05766,91575.0,91574.0,0.02327375]
[1763467003976,0.05766,91575.0,91574.0,0.04463375]
[1763467005066,0.04456,91575.0,91574.0,0.04463375]
[1763467005373,0.04456,91575.0,91574.0,0.04363375]
[1763467007072,0.04456,91575.0,91574.0,0.04463375]
[1763467007273,0.04456,91584.0,91583.0,0.04347]
[1763467007478,0.08295742,91584.0,91583.0,0.04347]
[1763467009867,0.04456,91581.0,91580.0,0.0007318]
[1763467010077,0.06932742,91581.0,91580.0,0.0007318]
[1763467010776,0.04456,91575.0,91574.0,0.04363375]
[1763467012672,0.04456,91575.0,91574.0,0.00016375]
[1763467014574,0.06930504,91575.0,91574.0,0.00016375]
[1763467019479,0.08192504,91575.0,91574.0,0.00016375]
[1763467021472,0.08192504,91575.0,91574.0,0.02165375]
[1763467021769,0.06930504,91575.0,91574.0,0.04398375]
[1763467022786,0.04456,91575.0,91574.0,0.04398375]
[1763467025082,0.04456,91575.0,91574.0,0.04498375]
[1763467025784,0.04456,91575.0,91574.0,0.04398375]
[1763467027179,0.08196881,91575.0,91574.0,0.04398375]
[1763467028083,0.06934881,91575.0,91574.0,0.04398375]
[1763467028674,0.08436949,91589.0,91588.0,0.04382]
[1763467028870,0.10916145,91589.0,91588.0,0.04382]
[1763467029074,0.06993196,91589.0,91588.0,0.04382]
[1763467029875,0.10916145,91589.0,91588.0,0.04382]
[1763467030386,0.11016145,91589.0,91588.0,0.04382]
[1763467030778,0.10916145,91589.0,91588.0,0.04382]
[1763467031180,0.02479196,91589.0,91588.0,0.04382]
[1763467031778,0.04677196,91589.0,91588.0,0.04382]
[1763467031977,0.0467761,91589.0,91588.0,0.04382]
[1763467032483,0.0247961,91589.0,91588.0,0.04382]
[1763467033682,0.04530375,91593.0,91592.0,0.04382]
[1763467033888,0.046926,91593.0,91592.0,0.04382]
[1763467034390,0.02214375,91593.0,91592.0,0.04382]
[1763467034582,0.04530375,91593.0,91592.0,0.04382]
[1763467034983,0.04530375,91593.0,91590.0,0.0135718]
[1763467034984,0.04514,91591.0,91590.0,0.0007318]
[1763467035181,0.06991373,91591.0,91590.0,0.0222218]
[1763467035878,0.06991373,91591.0,91590.0,0.0445518]
[1763467041395,0.04514,91591.0,91590.0,0.0445518]
[1763467041594,0.04514,91591.0,91590.0,0.0543818]
[1763467042190,0.04512,91608.0,91607.0,0.04352]
[1763467042394,0.06988252,91608.0,91607.0,0.04352]
[1763467044286,0.04512,91599.0,91598.0,0.04368375]
[1763467044592,0.04512,91599.0,91598.0,0.00016375]
[1763467044793,0.06987237,91599.0,91598.0,0.00016375]
[1763467047200,0.06987237,91599.0,91598.0,0.04282375]
[1763467048290,0.06987237,91599.0,91598.0,0.00016375]
[1763467048694,0.06987237,91599.0,91598.0,0.04258375]
[1763467050395,0.06987237,91599.0,91598.0,0.00016375]
[1763467052996,0.06987237,91599.0,91598.0,0.04258375]
[1763467053799,0.06987237,91599.0,91598.0,0.02151375]
[1763467056309,0.06987237,91599.0,91598.0,0.04258375]
[1763467059907,0.06987237,91599.0,91598.0,0.04358375]
[1763467060897,0.06987237,91599.0,91598.0,0.04258375]
[1763467066710,0.02475237,91599.0,91598.0,0.04258375]
[1763467067102,0.07289082,91615.0,91598.0,0.04258375]
[1763467067103,0.09863949,91615.0,91614.0,0.04242]
[1763467067300,0.12340467,91615.0,91614.0,0.04242]
[1763467067506,0.08417518,91615.0,91614.0,0.04242]
[1763467068000,0.02476518,91615.0,91614.0,0.1516942]
[1763467068213,0.00016375,91617.0,91616.0,0.04242]
[1763467069907,0.02273375,91617.0,91616.0,0.04242]
[1763467070107,0.04570375,91617.0,91616.0,0.04242]
[1763467070508,0.00016375,91617.0,91616.0,0.04242]
[1763467071303,0.04570375,91617.0,91616.0,0.04242]
[1763467072709,0.00016375,91617.0,91616.0,0.04242]
[1763467073212,0.04570375,91617.0,91616.0,0.04242]
[1763467073616,0.04570375,91617.0,91616.0,0.30558]
[1763467073917,0.04570375,91617.0,91616.0,0.04242]
[1763467074614,0.05895,91614.0,91613.0,0.04242]
[1763467074813,0.05895,91614.0,91610.0,0.0007318]
[1763467074814,0.04554,91611.0,91610.0,0.0007318]
[1763467075010,0.04554,91611.0,91610.0,0.0431518]
[1763467077808,0.04554,91611.0,91610.0,0.0441518]
[1763467079609,0.04554,91611.0,91610.0,0.0431518]
[1763467079809,0.07024662,91611.0,91610.0,0.0431518]
[1763467083917,0.07024662,91611.0,91598.0,0.00016375]
[1763467084119,0.01341,91614.0,91598.0,0.04295375]
[1763467084120,0.04332,91599.0,91598.0,0.04295375]
[1763467084312,0.04332,91599.0,91598.0,0.25375375]
[1763467084508,0.06803651,91599.0,91598.0,0.25375375]
[1763467084921,0.06703651,91599.0,91598.0,0.25375375]
[1763467085123,0.06603651,91599.0,91598.0,0.25375375]
[1763467085819,0.06603651,91599.0,91598.0,0.04295375]
[1763467089718,0.04132,91599.0,91598.0,0.04295375]
[1763467097121,0.04132,91599.0,91578.0,0.1093262]
[1763467097122,0.04332,91582.0,91581.0,0.04279]
[1763467097320,0.04332,91582.0,91581.0,0.30587]
[1763467098521,0.04332,91582.0,91581.0,0.30687]
[1763467098726,0.02111,91582.0,91581.0,0.30687]
[1763467098914,0.02111,91582.0,91581.0,0.30587]
[1763467099117,0.02111,91582.0,91581.0,0.30687]
[1763467100127,0.02111,91582.0,91581.0,0.30787]
[1763467100921,0.02111,91582.0,91581.0,0.30687]
[1763467101122,0.02111,91582.0,91581.0,0.30587]
[1763467101328,0.02111,91582.0,91581.0,0.30687]
[1763467101827,0.04355375,91591.0,91590.0,0.04401]
[1763467102023,0.04355375,91591.0,91590.0,0.0447418]
[1763467104831,0.06826894,91591.0,91590.0,0.0447418]
[1763467107622,0.06826894,91591.0,91590.0,0.0007318]
[1763467108527,0.05634,91585.0,91584.0,0.28429]
[1763467108726,0.05634,91585.0,91584.0,0.30576]
[1763467109023,0.05634,91585.0,91584.0,0.04268]
[1763467109228,0.08105788,91585.0,91584.0,0.02121]
[1763467109522,0.08105788,91585.0,91584.0,0.04268]
[1763467109727,0.06898788,91585.0,91584.0,0.04268]
[1763467114129,0.02471788,91585.0,91584.0,0.04268]
[1763467114331,0.04443375,91591.0,91590.0,0.04268]
[1763467114539,0.0691578,91591.0,91590.0,0.0434118]
[1763467120234,0.0465778,91591.0,91590.0,0.0560218]
[1763467120627,0.02185375,91591.0,91590.0,0.0560218]
[1763467121041,0.04443375,91591.0,91590.0,0.0560218]
[1763467121338,0.06916627,91591.0,91590.0,0.0219418]
[1763467121540,0.06916627,91591.0,91590.0,0.0434118]
[1763467121935,0.06916627,91591.0,91590.0,0.0560218]
[1763467122235,0.02489627,91591.0,91590.0,0.0560218]
[1763467122627,0.04658627,91591.0,91590.0,0.0560218]
[1763467123040,0.06916627,91591.0,91590.0,0.0560218]
[1763467125235,0.00016375,91591.0,91590.0,0.1653347]
[1763467125544,0.04427,91608.0,91607.0,0.04268]
[1763467125743,0.06900806,91608.0,91607.0,0.04268]
[1763467126746,0.07000806,91608.0,91607.0,0.04268]
[1763467129843,0.04427,91599.0,91598.0,0.04284375]
[1763467130146,0.06900806,91599.0,91598.0,0.04284375]
[1763467132149,0.04427,91599.0,91598.0,0.04284375]
[1763467132747,0.06897458,91599.0,91598.0,0.04284375]
[1763467133249,0.04427,91599.0,91598.0,0.04284375]
[1763467138349,0.04427,91599.0,91598.0,0.00016375]
[1763467138648,0.04427,91599.0,91598.0,0.04442375]
[1763467140855,0.06897073,91599.0,91598.0,0.04442375]
[1763467141353,0.06897073,91599.0,91598.0,0.00016375]
[1763467147553,0.06897073,91599.0,91598.0,0.02256375]
[1763467147852,0.06897073,91599.0,91598.0,0.04442375]
[1763467148456,0.06997073,91599.0,91598.0,0.04442375]
[1763467148857,0.06897073,91599.0,91598.0,0.04442375]
[1763467151660,0.02470073,91599.0,91598.0,0.04442375]
[1763467151867,0.0445,91615.0,91614.0,0.04426]
[1763467154267,0.0465,91615.0,91614.0,0.04426]
[1763467154953,0.0455,91615.0,91614.0,0.04426]
[1763467155659,0.0445,91611.0,91610.0,0.0007318]
[1763467156056,0.0445,91599.0,91598.0,0.00016375]
[1763467156256,0.0445,91599.0,91598.0,0.15614375]
[1763467159668,0.0445,91599.0,91598.0,0.00016375]
[1763467160268,0.0445,91599.0,91572.0,0.01302]
[1763467160470,0.04508,91573.0,91572.0,0.05674]
[1763467160855,0.04508,91573.0,91572.0,0.04372]
[1763467161563,0.04508,91573.0,91572.0,0.04472]
[1763467161962,0.04508,91573.0,91572.0,0.04572]
[1763467162161,0.04508,91573.0,91572.0,0.04472]
[1763467162369,0.04508,91573.0,91572.0,0.04572]
[1763467162555,0.04508,91573.0,91572.0,0.04472]
[1763467162754,0.04508,91573.0,91572.0,0.04572]
[1763467164260,0.04508,91573.0,91572.0,0.04472]
[1763467164465,0.04508,91573.0,91572.0,0.04572]
[1763467165270,0.04508,91573.0,91572.0,0.002]
[1763467165569,0.06977716,91573.0,91572.0,0.002]
[1763467166865,0.05696,91567.0,91566.0,0.00027303]
[1763467167066,0.05696,91567.0,91563.0,0.00016375]
[1763467167067,0.04399,91564.0,91563.0,0.00016375]
[1763467167271,0.02106,91547.0,91546.0,0.16987]
[1763467167478,0.0442,91547.0,91546.0,0.16987]
[1763467167959,0.0432,91547.0,91546.0,0.16987]
[1763467168163,0.0422,91547.0,91546.0,0.16987]
[1763467168364,0.00219803,91550.0,91549.0,0.04379]
[1763467168564,0.00016385,91556.0,91555.0,0.04379]
[1763467168965,0.04436385,91556.0,91555.0,0.04379]
[1763467169364,0.04436385,91556.0,91550.0,0.0445218]
[1763467169365,0.0442,91551.0,91550.0,0.0445218]
[1763467170876,0.0442,91551.0,91550.0,0.0455218]